Workbook

Sheet Sažetak mjesečnog proračuna
B1: NAZIV TVRTKE
B2: MJESEČNI PRORAČUN | E2: Datum
B4: UKUPNI IZNOSI PRORAČUNA | C4: PROCIJENJENO | D4: STVARNO | E4: RAZLIKA
B5: Prihodi | C5: =Prihod[[#Totals],[PROCIJENJENO]] -> 63,300.00 | D5: =Prihod[[#Totals],[STVARNO]] -> 57,450.00 | E5: =Ukupni_zbrojevi[[#This Row],[STVARNO]]-Ukupni_zbrojevi[[#This Row],[PROCIJENJENO]] -> -5,850.00
B6: Troškovi | C6: =OperativniTroškovi[[#Totals],[PROCIJENJENO]]+TroškoviZaposlenici[[#Totals],[PROCIJENJENO]] -> 54,500.00 | D6: =OperativniTroškovi[[#Totals],[STVARNO]]+TroškoviZaposlenici[[#Totals],[STVARNO]] -> 49,630.00 | E6: =Ukupni_zbrojevi[[#This Row],[STVARNO]]-Ukupni_zbrojevi[[#This Row],[PROCIJENJENO]] -> -4,870.00
B7: Stanje (prihodi minus troškovi) | C7: =C5-C6 -> 8,800.00 | D7: =D5-D6 -> 7,820.00 | E7: =SUM(Ukupni_zbrojevi[[#Totals],[STVARNO]]-Ukupni_zbrojevi[[#Totals],[PROCIJENJENO]]) -> -980.00
B10: KOJI SU MOJIH PET NAJVIŠIH OPERATIVNIH TROŠKOVA?
B11: TROŠAK | C11: IZNOS | D11: % TROŠKOVA | E11: SMANJENJE OD 15%
B12: =INDEX(OperativniTroškovi[],MATCH(Pet_najvećih_troškova[[#This Row],[IZNOS]],OperativniTroškovi[PET NAJVEĆIH IZNOSA],0),1) -> Održavanje i popravci | C12: =LARGE(OperativniTroškovi[PET NAJVEĆIH IZNOSA],1) -> 4,600.00 | D12: =Pet_najvećih_troškova[[#This Row],[IZNOS]]/$D$6 -> 9.3% | E12: =Pet_najvećih_troškova[[#This Row],[IZNOS]]*0.15 -> 690.00
B13: =INDEX(OperativniTroškovi[],MATCH(Pet_najvećih_troškova[[#This Row],[IZNOS]],OperativniTroškovi[PET NAJVEĆIH IZNOSA],0),1) -> Potrošni materijal | C13: =LARGE(OperativniTroškovi[PET NAJVEĆIH IZNOSA],2) -> 4,500.00 | D13: =Pet_najvećih_troškova[[#This Row],[IZNOS]]/$D$6 -> 9.1% | E13: =Pet_najvećih_troškova[[#This Row],[IZNOS]]*0.15 -> 675.00
B14: =INDEX(OperativniTroškovi[],MATCH(Pet_najvećih_troškova[[#This Row],[IZNOS]],OperativniTroškovi[PET NAJVEĆIH IZNOSA],0),1) -> Najam ili kredit | C14: =LARGE(OperativniTroškovi[PET NAJVEĆIH IZNOSA],3) -> 4,500.00 | D14: =Pet_najvećih_troškova[[#This Row],[IZNOS]]/$D$6 -> 9.1% | E14: =Pet_najvećih_troškova[[#This Row],[IZNOS]]*0.15 -> 675.00
B15: =INDEX(OperativniTroškovi[],MATCH(Pet_najvećih_troškova[[#This Row],[IZNOS]],OperativniTroškovi[PET NAJVEĆIH IZNOSA],0),1) -> Porezi | C15: =LARGE(OperativniTroškovi[PET NAJVEĆIH IZNOSA],4) -> 3,200.00 | D15: =Pet_najvećih_troškova[[#This Row],[IZNOS]]/$D$6 -> 6.4% | E15: =Pet_najvećih_troškova[[#This Row],[IZNOS]]*0.15 -> 480.00
B16: =INDEX(OperativniTroškovi[],MATCH(Pet_najvećih_troškova[[#This Row],[IZNOS]],OperativniTroškovi[PET NAJVEĆIH IZNOSA],0),1) -> Oglašavanje | C16: =LARGE(OperativniTroškovi[PET NAJVEĆIH IZNOSA],5) -> 2,500.00 | D16: =Pet_najvećih_troškova[[#This Row],[IZNOS]]/$D$6 -> 5.0% | E16: =Pet_najvećih_troškova[[#This Row],[IZNOS]]*0.15 -> 375.00
B17: Ukupno | C17: =SUBTOTAL(109,Pet_najvećih_troškova[IZNOS]) -> 19,300.00 | D17: =SUBTOTAL(109,Pet_najvećih_troškova[% TROŠKOVA]) -> 38.9% | E17: =SUBTOTAL(109,Pet_najvećih_troškova[SMANJENJE OD 15%]) -> 2,895.00

Sheet Prihodi
B1: =NAZIV_TVRTKE -> NAZIV TVRTKE
B2: =PRORAČUN_naslov -> MJESEČNI PRORAČUN
B4: PRIHODI | C4: PROCIJENJENO | D4: STVARNO | E4: PET NAJVEĆIH IZNOSA | F4: RAZLIKA
B5: Neto prodaja | C5: 60,000.00 | D5: 54,000.00 | E5: =Prihod[[#This Row],[STVARNO]]+(10^-6)*ROW(Prihod[[#This Row],[STVARNO]]) -> 54,000.00 | F5: =Prihod[[#This Row],[STVARNO]]-Prihod[[#This Row],[PROCIJENJENO]] -> -6,000.00
B6: Prihodi od kamata | C6: 3,000.00 | D6: 3,000.00 | E6: =Prihod[[#This Row],[STVARNO]]+(10^-6)*ROW(Prihod[[#This Row],[STVARNO]]) -> 3,000.00 | F6: =Prihod[[#This Row],[STVARNO]]-Prihod[[#This Row],[PROCIJENJENO]] -> 0.00
B7: Prodaja resursa (dobitak/gubitak) | C7: 300.00 | D7: 450.00 | E7: =Prihod[[#This Row],[STVARNO]]+(10^-6)*ROW(Prihod[[#This Row],[STVARNO]]) -> 450.00 | F7: =Prihod[[#This Row],[STVARNO]]-Prihod[[#This Row],[PROCIJENJENO]] -> 150.00
B8: Ukupni prihod | C8: =SUBTOTAL(109,Prihod[PROCIJENJENO]) -> 63,300.00 | D8: =SUBTOTAL(109,Prihod[STVARNO]) -> 57,450.00 | F8: =SUBTOTAL(109,Prihod[RAZLIKA]) -> -5,850.00

Sheet Troškovi za zaposlenike
B1: =NAZIV_TVRTKE -> NAZIV TVRTKE
B2: =PRORAČUN_naslov -> MJESEČNI PRORAČUN
B4: TROŠKOVI ZA ZAPOSLENIKE | C4: PROCIJENJENO | D4: STVARNO | E4: PET NAJVEĆIH IZNOSA | F4: RAZLIKA
B5: Plaće | C5: 9,500.00 | D5: 9,600.00 | E5: =TroškoviZaposlenici[[#This Row],[STVARNO]]+(10^-6)*ROW(TroškoviZaposlenici[[#This Row],[STVARNO]]) -> 9,600.00 | F5: =TroškoviZaposlenici[[#This Row],[PROCIJENJENO]]-TroškoviZaposlenici[[#This Row],[STVARNO]] -> -100.00
B6: Pogodnosti za zaposlenike | C6: 4,000.00 | D6: 0.00 | E6: =TroškoviZaposlenici[[#This Row],[STVARNO]]+(10^-6)*ROW(TroškoviZaposlenici[[#This Row],[STVARNO]]) -> 0.00 | F6: =TroškoviZaposlenici[[#This Row],[PROCIJENJENO]]-TroškoviZaposlenici[[#This Row],[STVARNO]] -> 4,000.00
B7: Provizija | C7: 5,000.00 | D7: 4,500.00 | E7: =TroškoviZaposlenici[[#This Row],[STVARNO]]+(10^-6)*ROW(TroškoviZaposlenici[[#This Row],[STVARNO]]) -> 4,500.00 | F7: =TroškoviZaposlenici[[#This Row],[PROCIJENJENO]]-TroškoviZaposlenici[[#This Row],[STVARNO]] -> 500.00
B8: Ukupni troškovi za zaposlenike | C8: =SUBTOTAL(109,TroškoviZaposlenici[PROCIJENJENO]) -> 18,500.00 | D8: =SUBTOTAL(109,TroškoviZaposlenici[STVARNO]) -> 14,100.00 | F8: =SUBTOTAL(109,TroškoviZaposlenici[RAZLIKA]) -> 4,400.00

Sheet Operativni troškovi
B1: =NAZIV_TVRTKE -> NAZIV TVRTKE
B2: =PRORAČUN_naslov -> MJESEČNI PRORAČUN
B4: OPERATIVNI TROŠKOVI | C4: PROCIJENJENO | D4: STVARNO | E4: PET NAJVEĆIH IZNOSA | F4: RAZLIKA
B5: Oglašavanje | C5: 3,000.00 | D5: 2,500.00 | E5: =OperativniTroškovi[[#This Row],[STVARNO]]+(10^-6)*ROW(OperativniTroškovi[[#This Row],[STVARNO]]) -> 2,500.00 | F5: =OperativniTroškovi[[#This Row],[PROCIJENJENO]]-OperativniTroškovi[[#This Row],[STVARNO]] -> 500.00
B6: Sporna potraživanja | C6: 2,000.00 | D6: 2,000.00 | E6: =OperativniTroškovi[[#This Row],[STVARNO]]+(10^-6)*ROW(OperativniTroškovi[[#This Row],[STVARNO]]) -> 2,000.00 | F6: =OperativniTroškovi[[#This Row],[PROCIJENJENO]]-OperativniTroškovi[[#This Row],[STVARNO]] -> 0.00
B7: Popusti za gotovinu | C7: 1,500.00 | D7: 2,175.00 | E7: =OperativniTroškovi[[#This Row],[STVARNO]]+(10^-6)*ROW(OperativniTroškovi[[#This Row],[STVARNO]]) -> 2,175.00 | F7: =OperativniTroškovi[[#This Row],[PROCIJENJENO]]-OperativniTroškovi[[#This Row],[STVARNO]] -> -675.00
B8: Troškovi isporuke | C8: 2,000.00 | D8: 1,500.00 | E8: =OperativniTroškovi[[#This Row],[STVARNO]]+(10^-6)*ROW(OperativniTroškovi[[#This Row],[STVARNO]]) -> 1,500.00 | F8: =OperativniTroškovi[[#This Row],[PROCIJENJENO]]-OperativniTroškovi[[#This Row],[STVARNO]] -> 500.00
B9: Amortizacija | C9: 1,000.00 | D9: 1,000.00 | E9: =OperativniTroškovi[[#This Row],[STVARNO]]+(10^-6)*ROW(OperativniTroškovi[[#This Row],[STVARNO]]) -> 1,000.00 | F9: =OperativniTroškovi[[#This Row],[PROCIJENJENO]]-OperativniTroškovi[[#This Row],[STVARNO]] -> 0.00
B10: Davanja i pretplate | C10: 500.00 | D10: 525.00 | E10: =OperativniTroškovi[[#This Row],[STVARNO]]+(10^-6)*ROW(OperativniTroškovi[[#This Row],[STVARNO]]) -> 525.00 | F10: =OperativniTroškovi[[#This Row],[PROCIJENJENO]]-OperativniTroškovi[[#This Row],[STVARNO]] -> -25.00
B11: Osiguranje | C11: 1,300.00 | D11: 1,275.00 | E11: =OperativniTroškovi[[#This Row],[STVARNO]]+(10^-6)*ROW(OperativniTroškovi[[#This Row],[STVARNO]]) -> 1,275.00 | F11: =OperativniTroškovi[[#This Row],[PROCIJENJENO]]-OperativniTroškovi[[#This Row],[STVARNO]] -> 25.00
B12: Kamata | C12: 2,000.00 | D12: 2,200.00 | E12: =OperativniTroškovi[[#This Row],[STVARNO]]+(10^-6)*ROW(OperativniTroškovi[[#This Row],[STVARNO]]) -> 2,200.00 | F12: =OperativniTroškovi[[#This Row],[PROCIJENJENO]]-OperativniTroškovi[[#This Row],[STVARNO]] -> -200.00
B13: Pravni troškovi i revizija | C13: 1,000.00 | D13: 800.00 | E13: =OperativniTroškovi[[#This Row],[STVARNO]]+(10^-6)*ROW(OperativniTroškovi[[#This Row],[STVARNO]]) -> 800.00 | F13: =OperativniTroškovi[[#This Row],[PROCIJENJENO]]-OperativniTroškovi[[#This Row],[STVARNO]] -> 200.00
B14: Održavanje i popravci | C14: 4,500.00 | D14: 4,600.00 | E14: =OperativniTroškovi[[#This Row],[STVARNO]]+(10^-6)*ROW(OperativniTroškovi[[#This Row],[STVARNO]]) -> 4,600.00 | F14: =OperativniTroškovi[[#This Row],[PROCIJENJENO]]-OperativniTroškovi[[#This Row],[STVARNO]] -> -100.00
B15: Uredski pribor | C15: 800.00 | D15: 750.00 | E15: =OperativniTroškovi[[#This Row],[STVARNO]]+(10^-6)*ROW(OperativniTroškovi[[#This Row],[STVARNO]]) -> 750.00 | F15: =OperativniTroškovi[[#This Row],[PROCIJENJENO]]-OperativniTroškovi[[#This Row],[STVARNO]] -> 50.00
B16: Poštarina | C16: 400.00 | D16: 350.00 | E16: =OperativniTroškovi[[#This Row],[STVARNO]]+(10^-6)*ROW(OperativniTroškovi[[#This Row],[STVARNO]]) -> 350.00 | F16: =OperativniTroškovi[[#This Row],[PROCIJENJENO]]-OperativniTroškovi[[#This Row],[STVARNO]] -> 50.00
B17: Najam ili kredit | C17: 4,100.00 | D17: 4,500.00 | E17: =OperativniTroškovi[[#This Row],[STVARNO]]+(10^-6)*ROW(OperativniTroškovi[[#This Row],[STVARNO]]) -> 4,500.00 | F17: =OperativniTroškovi[[#This Row],[PROCIJENJENO]]-OperativniTroškovi[[#This Row],[STVARNO]] -> -400.00
B18: Prodajni troškovi | C18: 350.00 | D18: 400.00 | E18: =OperativniTroškovi[[#This Row],[STVARNO]]+(10^-6)*ROW(OperativniTroškovi[[#This Row],[STVARNO]]) -> 400.00 | F18: =OperativniTroškovi[[#This Row],[PROCIJENJENO]]-OperativniTroškovi[[#This Row],[STVARNO]] -> -50.00
B19: Isporuka i skladištenje | C19: 900.00 | D19: 840.00 | E19: =OperativniTroškovi[[#This Row],[STVARNO]]+(10^-6)*ROW(OperativniTroškovi[[#This Row],[STVARNO]]) -> 840.00 | F19: =OperativniTroškovi[[#This Row],[PROCIJENJENO]]-OperativniTroškovi[[#This Row],[STVARNO]] -> 60.00
B20: Potrošni materijal | C20: 5,000.00 | D20: 4,500.00 | E20: =OperativniTroškovi[[#This Row],[STVARNO]]+(10^-6)*ROW(OperativniTroškovi[[#This Row],[STVARNO]]) -> 4,500.00 | F20: =OperativniTroškovi[[#This Row],[PROCIJENJENO]]-OperativniTroškovi[[#This Row],[STVARNO]] -> 500.00
B21: Porezi | C21: 3,000.00 | D21: 3,200.00 | E21: =OperativniTroškovi[[#This Row],[STVARNO]]+(10^-6)*ROW(OperativniTroškovi[[#This Row],[STVARNO]]) -> 3,200.00 | F21: =OperativniTroškovi[[#This Row],[PROCIJENJENO]]-OperativniTroškovi[[#This Row],[STVARNO]] -> -200.00
B22: Telefon | C22: 250.00 | D22: 280.00 | E22: =OperativniTroškovi[[#This Row],[STVARNO]]+(10^-6)*ROW(OperativniTroškovi[[#This Row],[STVARNO]]) -> 280.00 | F22: =OperativniTroškovi[[#This Row],[PROCIJENJENO]]-OperativniTroškovi[[#This Row],[STVARNO]] -> -30.00
B23: Režije | C23: 1,400.00 | D23: 1,385.00 | E23: =OperativniTroškovi[[#This Row],[STVARNO]]+(10^-6)*ROW(OperativniTroškovi[[#This Row],[STVARNO]]) -> 1,385.00 | F23: =OperativniTroškovi[[#This Row],[PROCIJENJENO]]-OperativniTroškovi[[#This Row],[STVARNO]] -> 15.00
B24: Ostalo | C24: 1,000.00 | D24: 750.00 | E24: =OperativniTroškovi[[#This Row],[STVARNO]]+(10^-6)*ROW(OperativniTroškovi[[#This Row],[STVARNO]]) -> 750.00 | F24: =OperativniTroškovi[[#This Row],[PROCIJENJENO]]-OperativniTroškovi[[#This Row],[STVARNO]] -> 250.00
B25: Ukupni operativni troškovi | C25: =SUBTOTAL(109,OperativniTroškovi[PROCIJENJENO]) -> 36,000.00 | D25: =SUBTOTAL(109,OperativniTroškovi[STVARNO]) -> 35,530.00 | F25: =SUBTOTAL(109,OperativniTroškovi[RAZLIKA]) -> 470.00
